Workbook

Sheet Intro
H21: Sur la base du bilan et du compte de résultat de l'exercice FINANC'ICN, calculez le FdR, le BFR, la trésorerie ainsi que les S.I.G pour l'année N et N-1. Calculez le TER de l'année N.

Sheet Bilan
B1: BILAN
B2: ACTIF | G2: PASSIF
C3: Exercice N | F3: N-1 | H3: N | I3: N-1
C4: Brut | D4: Amort/Prov | E4: Net | F4: Net | H4: Net | I4: Net
B5: Immobilisations incorporelles | C5: =RAND()*(5000-3000)+3000 -> 3777.257371 | D5: =C5*2/4 -> 1888.628686 | E5: =C5-D5 -> 1888.628686 | F5: =((E5+E6)+'Compte de résultat'!G12+'Compte de résultat'!C20-(0.1*(C5+C6)))*0.02 -> 1450.423187 | G5: Capital social | H5: =RAND()*(30000-27000)+27000 -> 29005.62069 | I5: =RAND()*(27000-22000)+22000 -> 24586.123
B6: immobilisations corporelles | C6: =RAND()*(100000-75000)+75000 -> 90388.55761 | D6: =C6*5/30 -> 15064.7596 | E6: =C6-D6 -> 75323.79801 | F6: =((E5+E6)+'Compte de résultat'!G12+'Compte de résultat'!C20-(0.1*(C5+C6)))*0.98 -> 71070.73618 | G6: Primes d'émission,… | H6: =RAND()*(20000-0)+0 -> 7940.033345 | I6: 0
B7: Participations | C7: =RAND()*(5000-3000)+3000 -> 4344.423741 | E7: 4344.423741 | F7: =RAND()*(1500-1000)+1000 -> 1297.569381 | G7: Réserves | H7: =I7+I8-'Compte de résultat'!G4 -> 4883.460568 | I7: =RAND()*(4000-3000)+3000 -> 3371.149878
B8: Prêts | C8: =RAND()*(1000-500)+500 -> 892.1446814 | E8: 892.1446814 | F8: =RAND()*(1800-1000)+1000 -> 1798.890831 | G8: RESULTAT DE l'EXERCICE | H8: ='Compte de résultat'!C34 -> 5303.081429 | I8: ='Compte de résultat'!D34 -> 1630.466208
B9: TOTAL ACTIF IMMOBILISE (I) | C9: =SUM(C5:C8) -> 99402.3834 | D9: 16953.38829 | E9: =SUM(E5:E8) -> 82448.99511 | F9: =SUM(F5:F8) -> 75617.61958 | G9: Subventions d'investissement | H9: =I9-'Compte de résultat'!G14+INT(RAND()*(800-600)+600) -> 667.6126289 | I9: =RAND()*(150-100)+100 -> 121.0229014
B10: Stocks matières premières | C10: =RAND()*(13000-10000)+10000 -> 11903.94917 | E10: =C10-D10 -> 11903.94917 | F10: =RAND()*(13000-10000)+10000 -> 10606.11724 | G10: Provisions réglementées | H10: =RAND()*(300-200)+200 -> 271.1421231 | I10: =RAND()*(250-100)+100 -> 102.1809774
B11: Stocks produits finis et en-cours | C11: =RAND()*(10000-6000)+6000 -> 8000.065712 | D11: ='Compte de résultat'!G16 -> 2210.326575 | E11: =C11-D11 -> 5789.739137 | F11: =E11+('Compte de résultat'!G16-'Compte de résultat'!H16)-(0.1*C11) -> 5095.134019 | G11: TOTAL DES FONDS PROPRES (I) | H11: =SUM(H5:H10) -> 48070.95078 | I11: =SUM(I5:I10) -> 29810.94297
B12: Stocks marchandises | C12: =RAND()*(2500-2000)+2000 -> 2217.322788 | E12: 2217.322788 | F12: =RAND()*(2500-2000)+2000 -> 2482.795043 | G12: Provisions pour risques et charges (II) | H12: =RAND()*(1000-800)+800 -> 967.4165753 | I12: =RAND()*(900-700)+700 -> 735.6546507
B13: Clients et comptes rattachés | C13: =RAND()*(17000-9000)+9000 -> 12377.69918 | D13: ='Compte de résultat'!G17 -> 2229.493624 | E13: 10148.20555 | F13: =E13+('Compte de résultat'!G17-'Compte de résultat'!H17)-(0.1*C13) -> 9170.990733 | G13: Dettes financières (*) | H13: =RAND()*(100000-60000)+60000 -> 74445.05219 | I13: =RAND()*(80000-72000)+72000 -> 74539.98473
B14: Autres créances | C14: =RAND()*(2500-2000)+2000 -> 2115.780866 | E14: 2115.780866 | F14: =RAND()*(2500-2000)+2000 -> 2401.406979 | G14: Dettes fournisseurs et comptes rattachés | H14: =RAND()*(15000-8000)+8000 -> 8783.848773 | I14: =RAND()*(15000-8000)+8000 -> 9547.647821
B15: Valeurs mobilières de placement | C15: =RAND()*(1000-500)+500 -> 825.7740637 | E15: 825.7740637 | F15: =F67+0.45*(I18-F9-F10-F11-F12-F13-F14-F67) -> 5936.018037 | G15: Dettes fiscales et sociales | H15: =RAND()*(3000-2000)+2000 -> 2500.190938 | I15: =RAND()*(3000-2000)+2000 -> 2255.715615
B16: Disponibilités | C16: =H18-E9-E10-E11-E12-E13-E14-E15 -> 19989.53284 | E16: 19989.53284 | F16: =F68-0.45*(I18-F9-F10-F11-F12-F13-F14-F67) -> 6122.133156 | G16: Dettes sur immobilisations | H16: =RAND()*(1000-500)+500 -> 671.8400845 | I16: =RAND()*(1000-500)+500 -> 542.2691096
B17: TOTAL ACTIF CIRCULANT (II) | C17: =SUM(C10:C16) -> 57430.12463 | D17: =SUM(D10:D16) -> 4439.820199 | E17: 52990.30443 | F17: =SUM(F10:F16) -> 41814.59521 | G17: TOTAL DES DETTES (III) | H17: =SUM(H13:H16) -> 86400.93199 | I17: =SUM(I13:I16) -> 86885.61728
B18: TOTAL GENERAL (I+II) | C18: =C17+C9 -> 156832.508 | D18: =D17+D9 -> 21393.20849 | E18: 135439.2995 | F18: =F17+F9 -> 117432.2148 | G18: TOTAL GENERAL (I+II+III) | H18: =H17+H12+H11 -> 135439.2993 | I18: =I17+I12+I11 -> 117432.2149
G19: (*) Dont concours bancaires courants et soldes créditeurs des banques et CCP | H19: =RAND()*(10000-7000)+7000 -> 9423.92502 | I19: =RAND()*(7000-5000)+5000 -> 6937.108215
B25: Voici un Bilan et un Compte de Résultat type Examen. Remplissez la feuille Excel "A remplir" pour vous entrainer. L'exercice se génère de manière aléatoire, à l'infini, en cliquant sur le bouton "Exercice aléatoire". La feuille "Correction" indique les résultat que vous devriez obtenir.
B64: AIDE A LA GENERATION ALEATOIRE
B66: N | C66: =E18-H18 -> 0.0001943745301 | E66: N-1
B67: N-1 | C67: =F18-I18 -> -0.0001137235959 | E67: VMP avant passage d'une part des disponibilités: | F67: =INT(RAND()*(1000-500)+500) -> 927
E68: Disponibilités avant passage d'une partie aux VMP: | F68: =I18-F9-F10-F11-F12-F13-F14-F67 -> 11131.15131

Sheet Compte de résultat
B2: COMPTE DE RESULTAT | F2: ANNEXES
C3: N | D3: N-1 | G3: N | H3: N-1
B4: Ventes de marchandises | C4: =RAND()*(7000-5000)+5000 -> 5942.652461 | D4: =RAND()*(7000-5000)+5000 -> 6210.589093 | F4: Dividendes versés au titre du résultat N-1 | G4: =RAND()*(250-100)+100 -> 118.1554042
B5: Production vendue | C5: =RAND()*(40000-25000)+25000 -> 28709.51734 | D5: =RAND()*(30000-20000)+20000 -> 24716.98405
B6: Chiffres d'affaires nets | C6: =SUM(C4:C5) -> 34652.1698 | D6: =SUM(D4:D5) -> 30927.57314 | F6: Effets escomptés non échus | G6: =RAND()*(2500-1500)+1500 -> 1972.188624 | H6: =RAND()*(2500-1500)+1500 -> 2382.053378
B7: Production stockée | C7: =(Bilan!E11-Bilan!F11)+('Compte de résultat'!G16-'Compte de résultat'!H16) -> 800.0065712 | D7: =RAND()*(1000-500)+500 -> 694.2674773
B8: Production immobilisée | C8: =RAND()*(300-100)+100 -> 171.7550944 | D8: =RAND()*(300-100)+100 -> 163.5851233 | F8: Personnel extérieur à l'entreprise | G8: =RAND()*(900-500)+500 -> 525.9416368 | H8: =RAND()*(900-500)+500 -> 835.57542
B9: Subventions d'exploitation | C9: =RAND()*(200-100)+100 -> 195.5838712 | D9: =RAND()*(200-100)+100 -> 144.7992824
B10: Reprises sur provisions | C10: =RAND()*(100-10)+10 -> 44.48661278 | D10: =RAND()*(100-10)+10 -> 52.59566162 | F10: Prix de vente des immobilisations | G10: =RAND()*(5000-2000)+2000 -> 2466.041737
B11: Total des produits d'exploitation (I) | C11: =SUM(C6:C10) -> 35864.00195 | D11: =SUM(D6:D10) -> 31982.82068 | F11: Valeur brute des immobilisations cédées | G11: =RAND()*(9000-8000)+8000 -> 8280.971754
B12: Achats de marchandises | C12: =RAND()*(4000-3000)+3000 -> 3921.710063 | D12: =RAND()*(4000-3000)+3000 -> 3699.302255 | F12: Valeur nette comptable des immos cédées | G12: =RAND()*(1800-500)+500 -> 1649.999385
B13: Variation de stocks (marchandises) | C13: =-(Bilan!E12-Bilan!F12) -> 265.4722553 | D13: =RAND()*(300-100)+100 -> 101.1709869
B14: Achats de mat. prem. Et autres appros | C14: =RAND()*(5000-1000)+1000 -> 4271.951287 | D14: =RAND()*(6000-1000)+1000 -> 4689.45116 | F14: QPSIVR | G14: =RAND()*(300-100)+100 -> 206.4102726 | H14: =RAND()*(300-100)+100 -> 172.7830161
B15: Variation de stocks (MP et appros) | C15: =-(Bilan!E10-Bilan!F10) -> -1297.831936 | D15: =RAND()*(300-100)+100 -> 125.3649276
B16: Autres achats et charges externes | C16: =RAND()*(4000-2500)+2500 -> 3689.964376 | D16: =RAND()*(4000-2500)+2500 -> 2949.920122 | F16: Provisions sur stocks au 31 -12 | G16: =RAND()*(2300-2200)+2200 -> 2210.326575 | H16: =RAND()*(2200-1900)+1900 -> 2104.925122
B17: Impôts et taxes | C17: =RAND()*(1200-1000)+1000 -> 1186.156918 | D17: =RAND()*(1200-1000)+1000 -> 1081.109241 | F17: Provisions sur créances au 31 - 12 | G17: =RAND()*(2300-2200)+2200 -> 2229.493624 | H17: =RAND()*(2200-1900)+1900 -> 1968.938527
B18: Salaires et traitements | C18: =RAND()*(7000-6000)+6000 -> 6764.377545 | D18: =RAND()*(7000-6000)+6000 -> 6073.326939
B19: Charges sociales | C19: =C18/2 -> 3382.188772 | D19: =D18/2 -> 3036.66347
B20: Dotations aux ammortissements | C20: =RAND()*(6000-3000)+3000 -> 3075.314786 | D20: =RAND()*(6000-3000)+3000 -> 5352.002223
B21: Dotations aux provisions | C21: =G16-H16+G17-H17+Bilan!H10-Bilan!I10+Bilan!H12-Bilan!I12+C10 -> 811.1662337 | D21: =RAND()*(500-100)+100 -> 335.9670658
B22: Total des charges d'exploitation (II) | C22: =SUM(C12:C21) -> 26070.4703 | D22: =SUM(D12:D21) -> 27444.27839
B23: RRESULTAT D'EXPLOITATION (I-II) | C23: =C11-C22 -> 9793.531647 | D23: =D11-D22 -> 4538.542294
B24: Produits financiers (III) | C24: =RAND()*(60-20)+20 -> 43.04666496 | D24: =RAND()*(60-20)+20 -> 36.15114656
B25: Charges financières (IV) | C25: =RAND()*(2500-1500)+1500 -> 2462.043755 | D25: =RAND()*(2500-1500)+1500 -> 2172.863181
B26: RESULTAT FINANCIER (III-IV) | C26: =C24-C25 -> -2418.99709 | D26: =D24-D25 -> -2136.712035
B27: Produits exceptionnels (V) | C27: =RAND()*(200-100)+100+G10+G14 -> 2785.790806 | D27: =RAND()*(200-100)+100+H10+H14 -> 371.884645
B28: Charges exceptionnelles (VI) | C28: =RAND()*(200-100)+100+INT(G12) -> 1763.779767 | D28: =RAND()*(200-100)+100 -> 192.143475
B29: RESULTAT EXCEPTIONNEL (V+VI) | C29: =C27-C28 -> 1022.011038 | D29: =D27-D28 -> 179.74117
B30: Participation des salariés aux résultats (VII) | C30: =C34/4 -> 1325.770357 | D30: =D34/4 -> 407.616552
B31: Impôts sur les bénéfices (VIII) | C31: =C34/3 -> 1767.69381 | D31: =D34/3 -> 543.488736
B32: TOTAL DES PRODUITS (I+III+V) | C32: =C27+C24+C11 -> 38692.83942 | D32: =D27+D24+D11 -> 32390.85648
B33: TOTAL DES CHARGES (II+IV+VI+VII+VIII) | C33: =C22+C25+C28+C30+C31 -> 33389.75799 | D33: =D22+D25+D28+D30+D31 -> 30760.39033
B34: BENEFICE OU PERTE | C34: =C32-C33 -> 5303.081429 | D34: =D32-D33 -> 1630.466142

Sheet A remplir
B2: BILAN FONCTIONNEL | I2: BILAN FONCTIONNEL | N2: S.I.G
C3: N | D3: N-1 | J3: N | K3: N-1 | O3: N | P3: N-1
B4: FOND DE ROULEMENT: | I4: TRÉSORERIE | N4: …
N9: ="(1)" -> (1)
N10: …
I13: OU ALORS
B17: BESOIN EN FOND DE ROULEMENT: | N17: ="(2)" -> (2)
F19: TABLEAU EMPLOIS-RESSOURCES | N19: Seulement si activité de négociation
N23: ="(3)" -> (3)
N25: …
F29: TOTAL | I29: TOTAL
N31: ="(4)" -> (4)
N32: …
N40: ="(5)" -> (5)
N41: …
N45: ="(6)" -> (6)
B461: TABLEAU A NE PAS MODIFIER
B473: BILAN FONCTIONNEL | I473: BILAN FONCTIONNEL | N473: S.I.G
C474: N | D474: N-1 | J474: N | K474: N-1 | O474: N | P474: N-1
B475: FOND DE ROULEMENT: | I475: TRÉSORERIE | N475: …
B476: RESSOURCES STABLES | I476: TRÉSORERIE ACTIVE
I480: TRÉSORERIE PASSIVE | N480: Production Globale (1)
N481: …
B484: EMPLOIS STABLES | I484: OU ALORS
I486: FOND DE ROULEMENT
I487: BESOIN EN FOND DE ROULEMENT
B488: BESOIN EN FOND DE ROULEMENT: | N488: Valeur Ajoutée (2)
B489: EMPLOIS CIRCULANTS
F490: TABLEAU EMPLOIS-RESSOURCES | N490: Seulement si activité de négociation
N494: Marge Commerciale (3)
B495: RESSOURCES CIRCULANTES
N496: …
F500: TOTAL | I500: TOTAL
N502: Revenu Brut d'Exploitation (4)
N503: …
N511: Revenu Brut Global (5)
N512: …
N516: Capacité d'Auto-Financement (6)

Sheet Correction
B2: BILAN FONCTIONNEL | I2: BILAN FONCTIONNEL | N2: S.I.G
C3: N | D3: N-1 | J3: N | K3: N-1 | O3: N | P3: N-1
B4: FOND DE ROULEMENT: | C4: =C5-C13 -> 36050.31948 | D4: =D5-D13 -> 26605.71829 | I4: TRÉSORERIE | J4: =J5-J9 -> 9419.193502 | K4: =K5-K9 -> 2738.989461 | N4: …
B5: RESSOURCES STABLES | C5: =C6+C7+C10+C11+C8-C9 -> 135452.7032 | D5: =D6+D7+D10+D11+D8-D9 -> 122732.3835 | I5: TRÉSORERIE ACTIVE | J5: =J6+J7 -> 20815.30658 | K5: =K6+K7 -> 12058.15139 | N5: Chiffre d'affaire Net | O5: ='Compte de résultat'!C6 -> 34652.1698 | P5: ='Compte de résultat'!D6 -> 30927.57314
B6: Total des fonds propres | C6: =Bilan!H11 -> 48070.95078 | D6: =Bilan!I11 -> 29810.94297 | I6: Valeurs mobilières de placement | J6: =Bilan!C15 -> 825.7740637 | K6: =Bilan!F15 -> 5936.018037 | M6: + | N6: Production stockée | O6: ='Compte de résultat'!C7 -> 800.0065712 | P6: ='Compte de résultat'!D7 -> 694.2674773
A7: + | B7: Provisions pour risques et charges | C7: =Bilan!H12 -> 967.4165753 | D7: =Bilan!I12 -> 735.6546507 | H7: + | I7: Disponibilités | J7: =Bilan!C16 -> 19989.53284 | K7: =Bilan!F16 -> 6122.133156 | M7: + | N7: Production immobilisée | O7: ='Compte de résultat'!C8 -> 171.7550944 | P7: ='Compte de résultat'!D8 -> 163.5851233
A8: + | B8: Dettes financières | C8: =Bilan!H13 -> 74445.05219 | D8: =Bilan!I13 -> 74539.98473 | I8: - | M8: + | N8: Subventions d'exploitation | O8: ='Compte de résultat'!C9 -> 195.5838712 | P8: ='Compte de résultat'!D9 -> 144.7992824
A9: - | B9: Concours bancaires courants | C9: =Bilan!H19 -> 9423.92502 | D9: =Bilan!I19 -> 6937.108215 | I9: TRÉSORERIE PASSIVE | J9: =J10+J11 -> 11396.11364 | K9: =K10+K11 -> 9319.161593 | M9: = | N9: Production Globale (1) | O9: =SUM(O5:O8) -> 35819.51533 | P9: =SUM(P5:P8) -> 31930.22502
A10: + | B10: Provisions de l'actif | C10: =Bilan!D17 -> 4439.820199 | D10: ='Compte de résultat'!H16+'Compte de résultat'!H17 -> 4073.863649 | I10: Concours bancaires courants | J10: =Bilan!H19 -> 9423.92502 | K10: =Bilan!I19 -> 6937.108215 | N10: …
A11: + | B11: Ammortissement des immobilisations | C11: =Bilan!D9 -> 16953.38829 | D11: =Bilan!D9-'Compte de résultat'!C20+'Compte de résultat'!G11-'Compte de résultat'!G12 -> 20509.04587 | H11: + | I11: Effets escomptés non échus | J11: ='Compte de résultat'!G6 -> 1972.188624 | K11: ='Compte de résultat'!H6 -> 2382.053378 | N11: Production Globale | O11: =O9 -> 35819.51533 | P11: =P9 -> 31930.22502
B12: - | M12: - | N12: Achats | O12: ='Compte de résultat'!C12+'Compte de résultat'!C14 -> 8193.66135 | P12: ='Compte de résultat'!D12+'Compte de résultat'!D14 -> 8388.753415
B13: EMPLOIS STABLES | C13: =C14 -> 99402.3834 | D13: =D14 -> 96126.66545 | I13: OU ALORS | M13: - | N13: Variaions de stocks | O13: ='Compte de résultat'!C13+'Compte de résultat'!C15 -> -1032.35968 | P13: ='Compte de résultat'!D13+'Compte de résultat'!D15 -> 226.5359144
B14: Valeur brute total des actifs immobilisés | C14: =Bilan!C9 -> 99402.3834 | D14: =D11+Bilan!F9 -> 96126.66545 | M14: - | N14: Autres achats et charges externes | O14: ='Compte de résultat'!C16 -> 3689.964376 | P14: ='Compte de résultat'!D16 -> 2949.920122
I15: FOND DE ROULEMENT | J15: =C4 -> 36050.31948 | K15: =D4 -> 26605.71829 | M15: + | N15: Réintégration Personnels externes | O15: ='Compte de résultat'!G8 -> 525.9416368 | P15: ='Compte de résultat'!H8 -> 835.57542
H16: - | I16: BESOIN EN FOND DE ROULEMENT | J16: =C17 -> 26631.12655 | K16: =D17 -> 23866.72849 | M16: - | N16: Impots et taxes | O16: ='Compte de résultat'!C17 -> 1186.156918 | P16: ='Compte de résultat'!D17 -> 1081.109241
B17: BESOIN EN FOND DE ROULEMENT: | C17: =C18-C24 -> 26631.12655 | D17: =D18-D24 -> 23866.72849 | M17: = | N17: Valeur Ajoutée (2) | O17: =O11-O12-O13-O14+O15-O16 -> 24308.03401 | P17: =P11-P12-P13-P14+P15-P16 -> 20119.48175
B18: EMPLOIS CIRCULANTS | C18: =C19+C20+C21+C22 -> 38587.00634 | D18: =D19+D20+D21+D22 -> 36212.36104
B19: Stocks | C19: =Bilan!C10+Bilan!C11+Bilan!C12 -> 22121.33767 | D19: =Bilan!F10+Bilan!F11+Bilan!F12+'Compte de résultat'!H16 -> 20288.97142 | F19: TABLEAU EMPLOIS-RESSOURCES | N19: Seulement si activité de négociation
A20: + | B20: Créances | C20: =Bilan!C13 -> 12377.69918 | D20: =Bilan!F13+'Compte de résultat'!H17 -> 11139.92926 | N20: Vente de marchandises | O20: ='Compte de résultat'!C4 -> 5942.652461 | P20: ='Compte de résultat'!D4 -> 6210.589093
A21: + | B21: Autres créances | C21: =Bilan!C14 -> 2115.780866 | D21: =Bilan!F14 -> 2401.406979 | F21: =IF(O45<=0,"CAF<0",) -> 0 | H21: =IF(O45<=0,-O45,) -> 0 | I21: =IF(O45>=0,"CAF>0",) -> CAF>0 | J21: =IF(O45>=0,O45,) -> 8122.623211 | M21: - | N21: Achats de marchandises | O21: ='Compte de résultat'!C12 -> 3921.710063 | P21: ='Compte de résultat'!D12 -> 3699.302255
A22: + | B22: Effets escomptés non échus | C22: ='Compte de résultat'!G6 -> 1972.188624 | D22: ='Compte de résultat'!H6 -> 2382.053378 | F22: Dividendes | H22: ='Compte de résultat'!G4 -> 118.1554042 | I22: Apport en capital | J22: =Bilan!H5-Bilan!I5-(Bilan!I7-Bilan!H7+Bilan!I8-'Compte de résultat'!G4)+Bilan!H6-Bilan!I6 -> 12359.53092 | M22: - | N22: Variations de stocks de marchandises | O22: ='Compte de résultat'!C13 -> 265.4722553 | P22: ='Compte de résultat'!D13 -> 101.1709869
B23: - | F23: Investissements d'exploitation | H23: =Bilan!E5+Bilan!E6-(Bilan!F5+Bilan!F6)+'Compte de résultat'!C20+'Compte de résultat'!G12 -> 9416.581498 | I23: Cession d'immobilisation | J23: ='Compte de résultat'!G10 -> 2466.041737 | M23: = | N23: Marge Commerciale (3) | O23: =O20-O21-O22 -> 1755.470143 | P23: =P20-P21-P22 -> 2410.115851
B24: RESSOURCES CIRCULANTES | C24: =C25+C26+C27 -> 11955.8798 | D24: =D25+D26+D27 -> 12345.63255 | F24: Investissements financiers | H24: =Bilan!E7-Bilan!F7 -> 3046.85436 | I24: Réduction des prêts | J24: =Bilan!F8-Bilan!E8 -> 906.7461492
B25: Dettes fournisseurs | C25: =Bilan!H14 -> 8783.848773 | D25: =Bilan!I14 -> 9547.647821 | F25: =IF(-((Bilan!H13-Bilan!I13)+('Compte de résultat'!G6-'Compte de résultat'!H6))=H25,"Baisse dettes financières",0) -> Baisse dettes financières | H25: =IF((Bilan!H13-Bilan!I13)+('Compte de résultat'!G6-'Compte de résultat'!H6)<0,-((Bilan!H13-Bilan!I13)+('Compte de résultat'!G6-'Compte de résultat'!H6)),0) -> 504.7972933 | I25: Subvention d'investissement | J25: =Bilan!H9-Bilan!I9+'Compte de résultat'!G14 -> 753 | N25: …
A26: + | B26: Dettes fiscales | C26: =Bilan!H15 -> 2500.190938 | D26: =Bilan!I15 -> 2255.715615 | F26: =IF((Bilan!C15+Bilan!C16)-(Bilan!F16+Bilan!F15)>0,"Augmentation des liquidités",) -> Augmentation des liquidités | H26: =IF((Bilan!C15+Bilan!C16)-(Bilan!F15+Bilan!F16)>0,(Bilan!C15+Bilan!C16)-(Bilan!F15+Bilan!F16),) -> 8757.155715 | I26: =IF(Bilan!H13-Bilan!I13+'Compte de résultat'!G6-'Compte de résultat'!H6=J26,"Augmentation des dettes financières",) -> 0 | J26: =IF(Bilan!H13-Bilan!I13+'Compte de résultat'!G6-'Compte de résultat'!H6>0,Bilan!H13-Bilan!I13+'Compte de résultat'!G6-'Compte de résultat'!H6,0) -> 0 | N26: Valeur Ajoutée | O26: =O17 -> 24308.03401 | P26: =P17 -> 20119.48175
A27: + | B27: Dettes sur immobilisations | C27: =Bilan!H16 -> 671.8400845 | D27: =Bilan!I16 -> 542.2691096 | F27: =IF(C17-D17>0,"Augmentation du BFR",) -> Augmentation du BFR | H27: =IF(C17-D17>0,C17-D17,) -> 2764.398052 | I27: =IF((Bilan!E15+Bilan!E16-(Bilan!F15+Bilan!F16))<0,"Baisse des liquidités",) -> 0 | J27: =IF((Bilan!E15+Bilan!E16-(Bilan!F16+Bilan!F15))<0,-(Bilan!E15+Bilan!E16-(Bilan!F16+Bilan!F15)),) -> 0 | M27: - | N27: Salaires et traitements | O27: ='Compte de résultat'!C18 -> 6764.377545 | P27: ='Compte de résultat'!D18 -> 6073.326939
I28: =IF(C17-D17<0,"Baisse du BFR",) -> 0 | J28: =IF(C17-D17<0,-(C17-D17),) -> 0 | M28: - | N28: Charges sociales | O28: ='Compte de résultat'!C19 -> 3382.188772 | P28: ='Compte de résultat'!D19 -> 3036.66347
F29: TOTAL | H29: =SUM(H21:H28) -> 24607.94232 | I29: TOTAL | J29: =SUM(J21:J28) -> 24607.94201 | M29: - | N29: Participations des salariés au résultat | O29: ='Compte de résultat'!C30 -> 1325.770357 | P29: ='Compte de résultat'!D30 -> 407.616552
M30: - | N30: Personnel extérieur à l'entreprise | O30: ='Compte de résultat'!G8 -> 525.9416368 | P30: ='Compte de résultat'!H8 -> 835.57542
M31: = | N31: Revenu Brut d'Exploitation (4) | O31: =O26-O27-O28-O29-O30 -> 12309.7557 | P31: =P26-P27-P28-P29-P30 -> 9766.299369
N32: …
N33: Revenu Brut d'Exploitation | O33: =O31 -> 12309.7557 | P33: =P31 -> 9766.299369
M34: + | N34: Produits exceptionnels | O34: ='Compte de résultat'!C27 -> 2785.790806 | P34: ='Compte de résultat'!D27 -> 371.884645
M35: - | N35: Charges exceptionnelles | O35: ='Compte de résultat'!C28 -> 1763.779767 | P35: ='Compte de résultat'!D28 -> 192.143475
B36: ES CE QUE L'EXERCICE EST MAL GÉNÉRÉ? | M36: + | N36: Produits financiers | O36: ='Compte de résultat'!C24 -> 43.04666496 | P36: ='Compte de résultat'!D24 -> 36.15114656
B37: Valide ou Invalide | M37: - | N37: QPSIVR | O37: ='Compte de résultat'!G14 -> 206.4102726 | P37: ='Compte de résultat'!H14 -> 172.7830161
B38: Bilan N-1 | C38: =IF(INT(Bilan!F18)=INT(Bilan!I18),"VALIDE","INVALIDE") -> VALIDE | M38: + | N38: Valeur nette des immos cédés | O38: ='Compte de résultat'!G12 -> 1649.999385 | P38: ='Compte de résultat'!H12 -> 0
B39: Bilan N | C39: =IF(INT(Bilan!E18)=INT(Bilan!H18),"VALIDE","INVALIDE") -> VALIDE | M39: - | N39: Prix de vente des immos cédés | O39: ='Compte de résultat'!G10 -> 2466.041737 | P39: ='Compte de résultat'!H10 -> 0
B40: Bilan fonctionnel N-1 | C40: =IF(INT(K15-K16)=INT(K4),"VALIDE","INVALIDE") -> VALIDE | M40: = | N40: Revenu Brut Global (5) | O40: =O33+O34-O35+O36-O37+O38-O39 -> 12352.36078 | P40: =P33+P34-P35+P36-P37+P38-P39 -> 9809.40867
B41: Bilan fonctionnel N | C41: =IF(INT(J15-J16)=INT(J4),"VALIDE","INVALIDE") -> VALIDE | N41: …
B42: Tableau emploi ressource | C42: =IF(INT(H29)=INT(J29),"VALIDE","INVALIDE") -> VALIDE | N42: Revenu Brut Global | O42: =O40 -> 12352.36078 | P42: =P40 -> 9809.40867
M43: - | N43: Charges financières | O43: ='Compte de résultat'!C25 -> 2462.043755 | P43: ='Compte de résultat'!D25 -> 2172.863181
M44: - | N44: Impôts sur les bénéfices | O44: ='Compte de résultat'!C31 -> 1767.69381 | P44: ='Compte de résultat'!D31 -> 543.488736
M45: = | N45: Capacité d'Auto-Financement | O45: =O42-O43-O44 -> 8122.623211 | P45: =P42-P43-P44 -> 7093.056753
